fUSD/lending_fUSD_20260621
["ID","MTS","AMOUNT","RATE_DAILY","PERIOD"]
[425894103,1782030636000,-492.63888781,0.00024961,30]
[425894096,1782030636000,-226.55733363,0.00024621,2]
[425894093,1782030636000,-492.63888781,0.00024401,14]
[425894098,1782030636000,-178.39,0.00024658,2]
[425894100,1782030636000,-492.63888781,0.00024821,30]
[425894106,1782030636000,-226.55733369,0.00025169,2]
[425894108,1782030636000,-298.5,0.00025374,2]
[425894099,1782030636000,-492.63888781,0.00024681,30]
[425894104,1782030636000,-177.51,0.00025073,120]
[425894102,1782030636000,-921.0,0.00024961,5]
[425894107,1782030636000,-492.63888781,0.00025241,60]
[425894087,1782030636000,-1723.48835853,0.00023906,2]
[425894101,1782030636000,-150.0,0.0002485,2]
[425894094,1782030636000,-508.0,0.00024444,6]
[425894083,1782030636000,-150.0,0.00023667,2]
[425894070,1782030636000,-533.93342683,0.00022023,2]
[425894077,1782030636000,-226.55733363,0.00022977,2]
[425894109,1782030636000,-151.0,0.00025385,2]
[425894056,1782030636000,-533.93342683,0.00021824,2]
[425894065,1782030636000,-5000.0,0.00021918,2]
[425894055,1782030636000,-533.93342683,0.00021812,2]
[425894054,1782030636000,-518.51199711,0.00021806,2]
[425894059,1782030636000,-568.75859126,0.00021867,2]
[425894058,1782030636000,-625.01000906,0.00021866,2]
[425894060,1782030636000,-526.30007439,0.00021878,2]
[425894057,1782030636000,-501.24203536,0.0002185,2]
[425894063,1782030636000,-625.01000906,0.00021904,2]
[425894064,1782030636000,-518.51199711,0.0002191,2]
[425894061,1782030636000,-226.55733363,0.00021881,2]
[425894062,1782030636000,-518.51199711,0.00021895,2]
[425894069,1782030636000,-450.0,0.00022,2]
[425894075,1782030636000,-150.0,0.0002254,2]
[425894068,1782030636000,-2000.0,0.00022,7]
[425894074,1782030636000,-226.55733363,0.00022429,2]
[425894066,1782030636000,-577.23976879,0.0002195,2]
[425894067,1782030636000,-518.51199711,0.00021973,2]
[425894076,1782030636000,-152.28869,0.00022881,2]
[425894072,1782030636000,-4087.44938633,0.00022087,2]
[425894073,1782030636000,-508.0,0.00022222,4]
[425894071,1782030636000,-1723.48835853,0.00022073,2]
[425894078,1782030636000,-151.30166492,0.0002326,21]
[425894088,1782030636000,-4087.44938633,0.00023915,2]
[425894084,1782030636000,-492.63888781,0.00023701,7]
[425894110,1782030636000,-151.0,0.00025385,2]
[425894105,1782030636000,-492.63888781,0.00025101,60]
[425894111,1782030636000,-151.0,0.00025385,2]
[425894139,1782030636000,-2297.749984,0.00027123,3]
[425894142,1782030636000,-179.36771115,0.00027297,2]
[425894140,1782030636000,-200.0,0.00027178,2]
[425894144,1782030636000,-514.71331905,0.00027396,2]
[425894153,1782030636000,-500.0,0.00027396,2]
[425894145,1782030636000,-514.71331904,0.00027396,2]
[425894147,1782030636000,-514.71331904,0.00027396,2]
[425894148,1782030636000,-514.71331904,0.00027396,2]
[425894150,1782030636000,-500.0,0.00027396,2]
[425894146,1782030636000,-514.71331904,0.00027396,2]
[425894154,1782030636000,-500.0,0.00027396,2]
[425894151,1782030636000,-363.67,0.00027396,2]
[425894155,1782030636000,-500.0,0.00027396,2]
[425894152,1782030636000,-233.32012881,0.00027396,2]
[425894162,1782030636000,-500.0,0.00027396,2]
[425894156,1782030636000,-500.0,0.00027396,2]
[425894157,1782030636000,-500.0,0.00027396,2]
[425894164,1782030636000,-500.0,0.00027396,2]
[425894160,1782030636000,-500.0,0.00027396,2]
[425894161,1782030636000,-500.0,0.00027396,2]
[425894165,1782030636000,-500.0,0.00027396,2]
[425894158,1782030636000,-500.0,0.00027396,2]
[425894159,1782030636000,-500.0,0.00027396,2]
[425894166,1782030636000,-500.0,0.00027396,2]
[425894163,1782030636000,-500.0,0.00027396,2]
[425894138,1782030636000,-185.2,0.00027079,2]
[425894137,1782030636000,-1001.0,0.00027022,2]
[425894149,1782030636000,-500.0,0.00027396,2]
[425894143,1782030636000,-205.90025615,0.00027297,5]
[425894134,1782030636000,-554.26221408,0.00027,27]
[425894116,1782030636000,-151.0,0.00025432,2]
[425894121,1782030636000,-150.0,0.00026093,2]
[425894115,1782030636000,-151.0,0.00025432,2]
[425894113,1782030636000,-151.32,0.00025385,2]
[425894117,1782030636000,-151.0,0.00025432,2]
[425894112,1782030636000,-151.0,0.00025385,2]
[425894119,1782030636000,-1723.48835853,0.00025738,2]
[425894114,1782030636000,-151.5,0.00025432,2]
[425894118,1782030636000,-151.0,0.00025432,2]
[425894131,1782030636000,-3647.0,0.00026819,2]
[425894128,1782030636000,-485.219228,0.00026394,2]
[425894132,1782030636000,-250.0,0.00026849,8]
[425894120,1782030636000,-4087.44938633,0.00025743,2]
[425894141,1782030636000,-573.18046546,0.00027297,2]
[425894127,1782030636000,-175.688431,0.00026384,2]
[425894135,1782030636000,-164.6,0.00027,20]
[425894136,1782030636000,-151.0,0.0002702,2]
[425894130,1782030636000,-263.08,0.00026815,2]
[425894124,1782030636000,-175.688431,0.00026384,2]
[425894133,1782030636000,-263.56,0.00026849,8]
[425894129,1782030636000,-508.0,0.00026667,8]
[425894126,1782030636000,-175.688431,0.00026384,2]
[425894122,1782030636000,-150.0,0.00026143,2]
[425894125,1782030636000,-175.688431,0.00026384,2]
[425894123,1782030636000,-151.0,0.00026207,2]
[425894205,1782030637000,-242.5539186,0.00027397,2]
[425894207,1782030637000,-500.0,0.00027397,2]
[425894208,1782030637000,-500.0,0.00027397,2]
[425894206,1782030637000,-500.0,0.00027397,2]
[425894216,1782030637000,-500.0,0.00027397,2]
[425894203,1782030637000,-500.0,0.00027397,2]
[425894201,1782030637000,-500.0,0.00027397,2]
[425894204,1782030637000,-500.0,0.00027397,2]
[425894198,1782030637000,-500.0,0.00027397,2]
[425894194,1782030637000,-500.0,0.00027397,2]
[425894212,1782030637000,-500.0,0.00027397,2]
[425894202,1782030637000,-500.0,0.00027397,2]
[425894210,1782030637000,-500.0,0.00027397,2]
[425894222,1782030637000,-531.37,0.00027397,2]
[425894213,1782030637000,-500.0,0.00027397,2]
[425894214,1782030637000,-1091.57,0.00027397,2]
[425894211,1782030637000,-500.0,0.00027397,2]
[425894215,1782030637000,-500.0,0.00027397,2]
[425894219,1782030637000,-500.0,0.00027397,2]
[425894217,1782030637000,-500.0,0.00027397,2]
[425894221,1782030637000,-505.07107447,0.00027397,2]
[425894227,1782030637000,-500.0,0.00027397,2]
[425894224,1782030637000,-500.0,0.00027397,2]
[425894218,1782030637000,-500.0,0.00027397,2]
[425894220,1782030637000,-909.56,0.00027397,2]
[425894200,1782030637000,-500.0,0.00027397,2]
[425894209,1782030637000,-508.0,0.00027397,2]
[425894193,1782030637000,-500.0,0.00027396,2]
[425894168,1782030637000,-500.0,0.00027396,2]
[425894195,1782030637000,-500.0,0.00027397,2]
[425894167,1782030637000,-500.0,0.00027396,2]
[425894170,1782030637000,-500.0,0.00027396,2]
[425894225,1782030637000,-500.0,0.00027397,2]
[425894169,1782030637000,-500.0,0.00027396,2]
[425894179,1782030637000,-500.0,0.00027396,2]
[425894177,1782030637000,-500.0,0.00027396,2]
[425894178,1782030637000,-500.0,0.00027396,2]
[425894176,1782030637000,-500.0,0.00027396,2]
[425894174,1782030637000,-500.0,0.00027396,2]
[425894175,1782030637000,-500.0,0.00027396,2]
[425894171,1782030637000,-500.0,0.00027396,2]
[425894172,1782030637000,-500.0,0.00027396,2]
[425894173,1782030637000,-500.0,0.00027396,2]
[425894199,1782030637000,-500.0,0.00027397,2]
[425894180,1782030637000,-500.0,0.00027396,2]
[425894191,1782030637000,-500.0,0.00027396,2]
[425894183,1782030637000,-500.0,0.00027396,2]
[425894184,1782030637000,-500.0,0.00027396,2]
[425894182,1782030637000,-500.0,0.00027396,2]
[425894185,1782030637000,-500.0,0.00027396,2]
[425894186,1782030637000,-500.0,0.00027396,2]
[425894190,1782030637000,-500.0,0.00027396,2]
[425894188,1782030637000,-500.0,0.00027396,2]
[425894187,1782030637000,-500.0,0.00027396,2]
[425894189,1782030637000,-500.0,0.00027396,2]
[425894192,1782030637000,-500.0,0.00027396,2]
[425894196,1782030637000,-500.0,0.00027397,2]
[425894197,1782030637000,-500.0,0.00027397,2]
[425894181,1782030637000,-500.0,0.00027396,2]
[425894226,1782030637000,-500.0,0.00027397,2]
[425894230,1782030637000,-500.0,0.00027397,2]
[425894223,1782030637000,-509.73381579,0.00027397,2]
[425894262,1782030637000,-623.21,0.00027397,2]
[425894256,1782030637000,-500.0,0.00027397,2]
[425894258,1782030637000,-500.0,0.00027397,2]
[425894263,1782030637000,-500.0,0.00027397,2]
[425894260,1782030637000,-500.0,0.00027397,2]
[425894266,1782030637000,-500.0,0.00027397,2]
[425894269,1782030637000,-500.0,0.00027397,2]
[425894270,1782030637000,-500.0,0.00027397,2]
[425894268,1782030637000,-656.6,0.00027397,2]
[425894272,1782030637000,-500.0,0.00027397,2]
[425894271,1782030637000,-500.0,0.00027397,2]
[425894274,1782030637000,-500.0,0.00027397,2]
[425894257,1782030637000,-500.0,0.00027397,2]
[425894276,1782030637000,-563.02,0.00027397,2]
[425894267,1782030637000,-747.33,0.00027397,2]
[425894273,1782030637000,-500.0,0.00027397,2]
[425894275,1782030637000,-500.0,0.00027397,2]
[425894279,1782030637000,-500.0,0.00027397,2]
[425894278,1782030637000,-500.0,0.00027397,2]
[425894281,1782030637000,-500.0,0.00027397,2]
[425894280,1782030637000,-500.0,0.00027397,2]
[425894282,1782030637000,-500.0,0.00027397,2]
[425894285,1782030637000,-500.0,0.00027397,2]
[425894287,1782030637000,-500.0,0.00027397,2]
[425894283,1782030637000,-500.0,0.00027397,2]
[425894286,1782030637000,-500.0,0.00027397,2]
[425894277,1782030637000,-500.0,0.00027397,2]
[425894259,1782030637000,-500.0,0.00027397,2]
[425894284,1782030637000,-500.0,0.00027397,2]
[425894261,1782030637000,-500.0,0.00027397,2]
[425894264,1782030637000,-500.0,0.00027397,2]
[425894238,1782030637000,-592.47,0.00027397,2]
[425894240,1782030637000,-500.0,0.00027397,2]
[425894229,1782030637000,-500.0,0.00027397,2]
[425894239,1782030637000,-500.0,0.00027397,2]
[425894231,1782030637000,-500.0,0.00027397,2]
[425894232,1782030637000,-740.51,0.00027397,2]
[425894233,1782030637000,-500.0,0.00027397,2]
[425894237,1782030637000,-952.93,0.00027397,2]
[425894235,1782030637000,-500.0,0.00027397,2]
[425894234,1782030637000,-500.0,0.00027397,2]
[425894236,1782030637000,-500.0,0.00027397,2]
[425894241,1782030637000,-500.0,0.00027397,2]
[425894242,1782030637000,-500.0,0.00027397,2]
[425894228,1782030637000,-500.0,0.00027397,2]
[425894252,1782030637000,-500.0,0.00027397,2]
[425894253,1782030637000,-500.0,0.00027397,2]
[425894255,1782030637000,-500.0,0.00027397,2]
[425894251,1782030637000,-500.0,0.00027397,2]
[425894248,1782030637000,-500.0,0.00027397,2]
[425894250,1782030637000,-500.0,0.00027397,2]
[425894254,1782030637000,-500.0,0.00027397,2]
[425894246,1782030637000,-500.0,0.00027397,2]
[425894243,1782030637000,-500.0,0.00027397,2]
[425894249,1782030637000,-500.0,0.00027397,2]
[425894245,1782030637000,-500.0,0.00027397,2]
[425894265,1782030637000,-500.0,0.00027397,2]
[425894244,1782030637000,-500.0,0.00027397,2]
[425894247,1782030637000,-500.0,0.00027397,2]
[425894332,1782030638000,-500.0,0.00027397,2]
[425894322,1782030638000,-500.0,0.00027397,2]
[425894328,1782030638000,-500.0,0.00027397,2]
[425894329,1782030638000,-500.0,0.00027397,2]
[425894321,1782030638000,-500.0,0.00027397,2]
[425894324,1782030638000,-516.23285841,0.00027397,2]
[425894327,1782030638000,-500.0,0.00027397,2]
[425894325,1782030638000,-500.0,0.00027397,2]
[425894331,1782030638000,-500.0,0.00027397,2]
[425894330,1782030638000,-500.0,0.00027397,2]
[425894320,1782030638000,-623.61,0.00027397,2]
[425894337,1782030638000,-500.0,0.00027397,2]
[425894334,1782030638000,-500.0,0.00027397,2]
[425894335,1782030638000,-500.0,0.00027397,2]
[425894339,1782030638000,-500.0,0.00027397,2]
[425894326,1782030638000,-500.0,0.00027397,2]
[425894336,1782030638000,-582.57,0.00027397,2]
[425894338,1782030638000,-500.0,0.00027397,2]
[425894345,1782030638000,-500.0,0.00027397,120]
[425894340,1782030638000,-895.62,0.00027397,2]
[425894350,1782030638000,-303.48164348,0.00027397,120]
[425894344,1782030638000,-500.0,0.00027397,120]
[425894341,1782030638000,-500.0,0.00027397,2]
[425894333,1782030638000,-500.0,0.00027397,2]
[425894323,1782030638000,-500.0,0.00027397,2]
[425894318,1782030638000,-578.34872463,0.00027397,2]
[425894308,1782030638000,-648.95647269,0.00027397,2]
[425894349,1782030638000,-500.0,0.00027397,120]
[425894288,1782030638000,-500.0,0.00027397,2]
[425894290,1782030638000,-500.0,0.00027397,2]
[425894289,1782030638000,-500.0,0.00027397,2]
[425894296,1782030638000,-500.0,0.00027397,2]
[425894294,1782030638000,-500.0,0.00027397,2]
[425894291,1782030638000,-530.85,0.00027397,2]
[425894293,1782030638000,-634.91,0.00027397,2]
[425894300,1782030638000,-750.93,0.00027397,2]
[425894292,1782030638000,-500.0,0.00027397,2]
[425894297,1782030638000,-832.58,0.00027397,2]
[425894298,1782030638000,-500.0,0.00027397,2]
[425894302,1782030638000,-500.0,0.00027397,2]
[425894295,1782030638000,-652.16,0.00027397,2]
[425894303,1782030638000,-500.0,0.00027397,2]
[425894314,1782030638000,-500.0,0.00027397,2]
[425894316,1782030638000,-500.0,0.00027397,2]
[425894315,1782030638000,-586.67,0.00027397,2]
[425894317,1782030638000,-500.0,0.00027397,2]
[425894309,1782030638000,-500.0,0.00027397,2]
[425894306,1782030638000,-500.0,0.00027397,2]
[425894310,1782030638000,-500.0,0.00027397,2]
[425894312,1782030638000,-500.0,0.00027397,2]
[425894319,1782030638000,-500.0,0.00027397,2]
[425894299,1782030638000,-627.87,0.00027397,2]
[425894346,1782030638000,-500.0,0.00027397,120]
[425894342,1782030638000,-500.0,0.00027397,2]
[425894382,1782030638000,-526.83,0.00027397,2]
[425894387,1782030638000,-500.0,0.00027397,2]
[425894384,1782030638000,-500.0,0.00027397,2]
[425894400,1782030638000,-500.0,0.00027397,2]
[425894399,1782030638000,-500.0,0.00027397,2]
[425894392,1782030638000,-500.0,0.00027397,2]
[425894390,1782030638000,-500.0,0.00027397,2]
[425894388,1782030638000,-500.0,0.00027397,2]
[425894396,1782030638000,-500.0,0.00027397,2]
[425894397,1782030638000,-500.0,0.00027397,2]
[425894395,1782030638000,-500.0,0.00027397,2]
[425894381,1782030638000,-500.0,0.00027397,2]
[425894398,1782030638000,-838.22,0.00027397,2]
[425894394,1782030638000,-500.0,0.00027397,2]
[425894401,1782030638000,-500.0,0.00027397,2]
[425894408,1782030638000,-500.0,0.00027397,2]
[425894404,1782030638000,-500.0,0.00027397,2]
[425894403,1782030638000,-500.0,0.00027397,2]
[425894406,1782030638000,-764.28,0.00027397,2]
[425894402,1782030638000,-579.16,0.00027397,2]
[425894405,1782030638000,-563.62,0.00027397,2]
[425894407,1782030638000,-500.0,0.00027397,2]
[425894409,1782030638000,-500.0,0.00027397,2]
[425894347,1782030638000,-500.0,0.00027397,120]
[425894391,1782030638000,-389.74844786,0.00027397,2]
[425894376,1782030638000,-500.0,0.00027397,2]
[425894393,1782030638000,-500.0,0.00027397,2]
[425894383,1782030638000,-565.0,0.00027397,2]
[425894343,1782030638000,-500.0,0.00027397,2]
[425894380,1782030638000,-500.0,0.00027397,2]
[425894348,1782030638000,-500.0,0.00027397,120]
[425894351,1782030638000,-549.68,0.00027397,2]
[425894356,1782030638000,-500.0,0.00027397,2]
[425894360,1782030638000,-678.98,0.00027397,2]
[425894352,1782030638000,-500.0,0.00027397,2]
[425894355,1782030638000,-500.0,0.00027397,2]
[425894359,1782030638000,-500.0,0.00027397,2]
[425894354,1782030638000,-500.0,0.00027397,2]
[425894357,1782030638000,-500.0,0.00027397,2]
[425894361,1782030638000,-500.0,0.00027397,2]
[425894353,1782030638000,-500.0,0.00027397,2]
[425894358,1782030638000,-500.0,0.00027397,2]
[425894377,1782030638000,-522.58757195,0.00027397,2]
[425894379,1782030638000,-500.0,0.00027397,2]
[425894386,1782030638000,-500.0,0.00027397,2]
[425894385,1782030638000,-500.0,0.00027397,2]
[425894371,1782030638000,-500.0,0.00027397,2]
[425894378,1782030638000,-508.2114324,0.00027397,2]
[425894372,1782030638000,-520.84297556,0.00027397,2]
[425894366,1782030638000,-500.0,0.00027397,2]
[425894374,1782030638000,-500.0,0.00027397,2]
[425894368,1782030638000,-500.0,0.00027397,2]
[425894364,1782030638000,-500.0,0.00027397,2]
[425894452,1782030639000,-516.65137119,0.00027397,2]
[425894453,1782030639000,-500.0,0.00027397,2]
[425894450,1782030639000,-500.0,0.00027397,2]
[425894446,1782030639000,-500.0,0.00027397,2]
[425894445,1782030639000,-940.34,0.00027397,2]
[425894442,1782030639000,-500.0,0.00027397,2]
[425894447,1782030639000,-500.0,0.00027397,2]
[425894444,1782030639000,-500.0,0.00027397,2]
[425894441,1782030639000,-500.0,0.00027397,2]
[425894443,1782030639000,-500.0,0.00027397,2]
[425894454,1782030639000,-500.0,0.00027397,2]
[425894448,1782030639000,-1110.81,0.00027397,2]
[425894451,1782030639000,-500.0,0.00027397,2]
[425894466,1782030639000,-500.0,0.00027397,2]
[425894461,1782030639000,-500.0,0.00027397,2]
[425894459,1782030639000,-500.0,0.00027397,2]
[425894460,1782030639000,-500.0,0.00027397,2]
[425894462,1782030639000,-500.0,0.00027397,2]
[425894456,1782030639000,-500.0,0.00027397,2]
[425894458,1782030639000,-500.0,0.00027397,2]
[425894457,1782030639000,-500.0,0.00027397,2]
[425894464,1782030639000,-1119.44,0.00027397,2]
[425894463,1782030639000,-1076.8,0.00027397,2]
[425894474,1782030639000,-500.0,0.00027397,2]
[425894465,1782030639000,-500.0,0.00027397,2]
[425894467,1782030639000,-500.0,0.00027397,2]
[425894440,1782030639000,-500.0,0.00027397,2]
[425894455,1782030639000,-500.0,0.00027397,2]
[425894439,1782030639000,-500.0,0.00027397,2]
[425894410,1782030639000,-728.16,0.00027397,2]
[425894449,1782030639000,-500.0,0.00027397,2]
[425894468,1782030639000,-500.0,0.00027397,2]
[425894413,1782030639000,-500.0,0.00027397,2]
[425894412,1782030639000,-500.0,0.00027397,2]
[425894411,1782030639000,-500.0,0.00027397,2]
[425894415,1782030639000,-500.0,0.00027397,2]
[425894414,1782030639000,-500.0,0.00027397,2]
[425894416,1782030639000,-500.0,0.00027397,2]
[425894418,1782030639000,-500.0,0.00027397,2]
[425894417,1782030639000,-500.0,0.00027397,2]
[425894422,1782030639000,-500.0,0.00027397,2]
[425894420,1782030639000,-500.0,0.00027397,2]
[425894424,1782030639000,-1312.08,0.00027397,2]
[425894419,1782030639000,-500.0,0.00027397,2]
[425894438,1782030639000,-500.0,0.00027397,2]
[425894423,1782030639000,-500.0,0.00027397,2]
[425894427,1782030639000,-500.0,0.00027397,2]
[425894425,1782030639000,-500.0,0.00027397,2]
[425894428,1782030639000,-500.0,0.00027397,2]
[425894426,1782030639000,-500.0,0.00027397,2]
[425894434,1782030639000,-500.0,0.00027397,2]
[425894437,1782030639000,-156.01520065,0.00027397,2]
[425894435,1782030639000,-629.13,0.00027397,2]
[425894436,1782030639000,-500.0,0.00027397,2]
[425894431,1782030639000,-500.0,0.00027397,2]
[425894430,1782030639000,-500.0,0.00027397,2]
[425894432,1782030639000,-609.23,0.00027397,2]
[425894429,1782030639000,-500.0,0.00027397,2]
[425894433,1782030639000,-500.0,0.00027397,2]
[425894421,1782030639000,-500.0,0.00027397,2]
[425894472,1782030639000,-500.0,0.00027397,2]
[425894482,1782030639000,-500.0,0.00027397,2]
[425894470,1782030639000,-500.0,0.00027397,2]
[425894505,1782030639000,-500.0,0.00027397,2]
[425894506,1782030639000,-500.0,0.00027397,2]
[425894509,1782030639000,-500.0,0.00027397,2]
[425894510,1782030639000,-641.37,0.00027397,2]
[425894511,1782030639000,-500.0,0.00027397,2]
[425894508,1782030639000,-500.0,0.00027397,2]
[425894507,1782030639000,-500.0,0.00027397,2]
[425894523,1782030639000,-500.0,0.00027397,2]
[425894514,1782030639000,-263.21834717,0.00027397,2]
[425894513,1782030639000,-500.0,0.00027397,2]
[425894515,1782030639000,-500.0,0.00027397,2]
[425894516,1782030639000,-500.0,0.00027397,2]
[425894512,1782030639000,-500.0,0.00027397,2]
[425894517,1782030639000,-631.69,0.00027397,2]
[425894518,1782030639000,-577.03,0.00027397,2]
[425894519,1782030639000,-500.0,0.00027397,2]
[425894520,1782030639000,-500.0,0.00027397,2]
[425894522,1782030639000,-188.68566805,0.00027397,2]
[425894525,1782030639000,-151.33035822,0.00027397,2]
[425894531,1782030639000,-500.0,0.00027397,2]
[425894530,1782030639000,-802.02,0.00027397,2]
[425894528,1782030639000,-500.0,0.00027397,2]
[425894529,1782030639000,-500.0,0.00027397,2]
[425894527,1782030639000,-1091.13,0.00027397,2]
[425894526,1782030639000,-620.76,0.00027397,2]
[425894532,1782030639000,-500.0,0.00027397,2]
[425894471,1782030639000,-500.0,0.00027397,2]
[425894504,1782030639000,-500.0,0.00027397,2]
[425894501,1782030639000,-516.6018067,0.00027397,2]
[425894524,1782030639000,-500.0,0.00027397,2]
[425894502,1782030639000,-500.0,0.00027397,2]
[425894500,1782030639000,-1539.78,0.00027397,2]
[425894469,1782030639000,-500.0,0.00027397,2]
[425894475,1782030639000,-500.0,0.00027397,2]
[425894477,1782030639000,-500.0,0.00027397,2]
[425894478,1782030639000,-500.0,0.00027397,2]
[425894479,1782030639000,-500.0,0.00027397,2]
[425894486,1782030639000,-500.0,0.00027397,2]
[425894485,1782030639000,-500.0,0.00027397,2]
[425894483,1782030639000,-500.0,0.00027397,2]
[425894484,1782030639000,-500.0,0.00027397,2]
[425894480,1782030639000,-675.07,0.00027397,2]
[425894481,1782030639000,-500.0,0.00027397,2]
[425894476,1782030639000,-500.0,0.00027397,2]
[425894533,1782030639000,-774.62,0.00027397,2]
[425894473,1782030639000,-500.0,0.00027397,2]
[425894499,1782030639000,-500.0,0.00027397,2]
[425894488,1782030639000,-1344.48,0.00027397,2]
[425894495,1782030639000,-387.20516566,0.00027397,2]
[425894493,1782030639000,-500.0,0.00027397,2]
[425894491,1782030639000,-500.0,0.00027397,2]
[425894497,1782030639000,-500.0,0.00027397,2]
[425894492,1782030639000,-500.0,0.00027397,2]
[425894503,1782030639000,-500.0,0.00027397,2]
[425894496,1782030639000,-500.0,0.00027397,2]
[425894490,1782030639000,-500.0,0.00027397,2]
[425894489,1782030639000,-500.0,0.00027397,2]
[425894498,1782030639000,-500.0,0.00027397,2]
[425894487,1782030639000,-500.0,0.00027397,2]
[425894494,1782030639000,-500.0,0.00027397,2]
[425894541,1782030640000,-500.0,0.00027397,2]
[425894559,1782030640000,-500.0,0.00027397,2]
[425894556,1782030640000,-500.0,0.00027397,2]
[425894562,1782030640000,-500.0,0.00027397,2]
[425894557,1782030640000,-500.0,0.00027397,2]
[425894554,1782030640000,-602.83967886,0.00027397,2]
[425894552,1782030640000,-500.0,0.00027397,2]
[425894555,1782030640000,-500.0,0.00027397,2]
[425894551,1782030640000,-500.0,0.00027397,2]
[425894558,1782030640000,-500.0,0.00027397,2]
[425894550,1782030640000,-500.0,0.00027397,2]
[425894561,1782030640000,-500.0,0.00027397,2]
[425894547,1782030640000,-500.0,0.00027397,2]
[425894538,1782030640000,-986.01,0.00027397,2]
[425894544,1782030640000,-500.0,0.00027397,2]
[425894540,1782030640000,-500.0,0.00027397,2]
[425894548,1782030640000,-530.99,0.00027397,2]
[425894539,1782030640000,-500.0,0.00027397,2]
[425894549,1782030640000,-500.0,0.00027397,2]
[425894546,1782030640000,-500.0,0.00027397,2]
[425894542,1782030640000,-500.0,0.00027397,2]
[425894545,1782030640000,-500.0,0.00027397,2]
[425894536,1782030640000,-500.0,0.00027397,2]
[425894534,1782030640000,-500.0,0.00027397,2]
[425894535,1782030640000,-500.0,0.00027397,2]
[425894537,1782030640000,-500.0,0.00027397,2]
[425894560,1782030640000,-508.51928376,0.00027397,2]
[425894543,1782030640000,-500.0,0.00027397,2]
[425894553,1782030640000,-500.0,0.00027397,2]
[425894567,1782030640000,-441.06648978,0.00027397,2]
[425894564,1782030640000,-500.0,0.00027397,2]
[425894563,1782030640000,-500.0,0.00027397,2]
[425894590,1782030640000,-592.77,0.00027397,2]
[425894592,1782030640000,-500.0,0.00027397,2]
[425894594,1782030640000,-500.0,0.00027397,2]
[425894587,1782030640000,-1129.47,0.00027397,2]
[425894593,1782030640000,-500.0,0.00027397,2]
[425894591,1782030640000,-500.0,0.00027397,2]
[425894583,1782030640000,-500.0,0.00027397,2]
[425894584,1782030640000,-544.87087692,0.00027397,2]
[425894579,1782030640000,-500.0,0.00027397,2]
[425894582,1782030640000,-500.0,0.00027397,2]
[425894575,1782030640000,-500.0,0.00027397,2]
[425894577,1782030640000,-500.0,0.00027397,2]
[425894576,1782030640000,-500.0,0.00027397,2]
[425894588,1782030640000,-500.0,0.00027397,2]
[425894578,1782030640000,-859.64,0.00027397,2]
[425894581,1782030640000,-579.95,0.00027397,2]